[Event "*** Titled Tuesday Blitz"]
[Site "Chess.com"]
[Date "2021.03.30"]
[Round "10"]
[White "gaby_przz"]
[Black "kidagent"]
[Result "0-1"]
[WhiteElo "2448"]
[BlackElo "2337"]
[TimeControl "180+1"]
[EndTime "11:58:42 PDT"]
[Termination "kidagent won on time"]

1. e4 {[%clk 0:03:00.2]} 1... c5 {[%clk 0:03:00]} 2. Nf3 {[%clk 0:03:00.4]} 2...
d6 {[%clk 0:03:00.4]} 3. d4 {[%clk 0:03:00.8]} 3... cxd4 {[%clk 0:03:01.3]} 4.
Nxd4 {[%clk 0:03:01.7]} 4... Nf6 {[%clk 0:03:01.7]} 5. Nc3 {[%clk 0:03:02.3]}
5... a6 {[%clk 0:03:02.3]} 6. h3 {[%clk 0:03:02.7]} 6... e5 {[%clk 0:03:00.9]}
7. Nde2 {[%clk 0:03:02.6]} 7... b5 {[%clk 0:03:01.2]} 8. a3 {[%clk 0:03:02.6]}
8... Bb7 {[%clk 0:02:56.4]} 9. Bg5 {[%clk 0:02:53.1]} 9... Nbd7 {[%clk
0:02:55.4]} 10. Qd3 {[%clk 0:02:48.4]} 10... Be7 {[%clk 0:02:53.9]} 11. O-O-O
{[%clk 0:02:45.5]} 11... Nc5 {[%clk 0:02:47.8]} 12. Qe3 {[%clk 0:02:42.3]} 12...
Nfxe4 {[%clk 0:02:40.8]} 13. Bxe7 {[%clk 0:02:31]} 13... Qxe7 {[%clk 0:02:40.3]}
14. Nxe4 {[%clk 0:02:25.4]} 14... Nxe4 {[%clk 0:02:39.2]} 15. f4 {[%clk
0:02:19.9]} 15... O-O {[%clk 0:02:34.1]} 16. fxe5 {[%clk 0:02:18.3]} 16... dxe5
{[%clk 0:02:30.9]} 17. h4 {[%clk 0:02:04.9]} 17... Rad8 {[%clk 0:02:26.9]} 18.
Re1 {[%clk 0:02:00.9]} 18... Rd7 {[%clk 0:02:14]} 19. h5 {[%clk 0:01:50.9]}
19... Rfd8 {[%clk 0:02:04]} 20. Ng3 {[%clk 0:01:34.5]} 20... Nxg3 {[%clk
0:01:52.6]} 21. Qxg3 {[%clk 0:01:35.4]} 21... f6 {[%clk 0:01:48.1]} 22. Bd3
{[%clk 0:01:31.1]} 22... Qc5 {[%clk 0:01:44.3]} 23. Kb1 {[%clk 0:01:29.4]} 23...
h6 {[%clk 0:01:16.8]} 24. Qg6 {[%clk 0:01:25.4]} 24... Kf8 {[%clk 0:01:06.9]}
25. Qh7 {[%clk 0:00:59.8]} 25... Qd5 {[%clk 0:00:54.7]} 26. Rhf1 {[%clk
0:00:49.8]} 26... Qg8 {[%clk 0:00:50.4]} 27. Qg6 {[%clk 0:00:37.3]} 27... Qf7
{[%clk 0:00:44.3]} 28. Rxe5 {[%clk 0:00:29.1]} 28... Qxg6 {[%clk 0:00:42.2]} 29.
hxg6 {[%clk 0:00:25.7]} 29... Bxg2 {[%clk 0:00:40.9]} 30. Rf2 {[%clk 0:00:25.2]}
30... Bd5 {[%clk 0:00:34.3]} 31. Kc1 {[%clk 0:00:18.2]} 31... Re7 {[%clk
0:00:31.7]} 32. Ref5 {[%clk 0:00:16.3]} 32... Be4 {[%clk 0:00:28.4]} 33. Bxe4
{[%clk 0:00:05.1]} 33... Rxe4 {[%clk 0:00:28.9]} 34. b3 {[%clk 0:00:05.8]} 34...
Rg4 {[%clk 0:00:24.1]} 35. Rc5 {[%clk 0:00:05.5]} 35... Rxg6 {[%clk 0:00:22.4]}
36. Rc6 {[%clk 0:00:05.8]} 36... Ra8 {[%clk 0:00:20.7]} 37. Rc7 {[%clk
0:00:03.8]} 37... Kg8 {[%clk 0:00:19.3]} 38. c4 {[%clk 0:00:03.1]} 38... bxc4
{[%clk 0:00:18.7]} 39. bxc4 {[%clk 0:00:04]} 39... Rg5 {[%clk 0:00:17.4]} 40. c5
{[%clk 0:00:03.8]} 40... Rb8 {[%clk 0:00:12.2]} 41. Rc2 {[%clk 0:00:01.8]} 41...
h5 {[%clk 0:00:10.8]} 42. c6 {[%clk 0:00:01.9]} 42... h4 {[%clk 0:00:11.1]} 43.
Rd7 {[%clk 0:00:02]} 43... Rc8 {[%clk 0:00:10.5]} 44. c7 {[%clk 0:00:02.3]}
44... Kh7 {[%clk 0:00:10]} 45. Rd8 {[%clk 0:00:02.3]} 45... Rg1+ {[%clk
0:00:09.6]} 46. Kb2 {[%clk 0:00:02.2]} 46... Rxc7 {[%clk 0:00:09.2]} 47. Rxc7
{[%clk 0:00:02.8]} 47... h3 {[%clk 0:00:09.8]} 48. Rc2 {[%clk 0:00:03]} 48... g5
{[%clk 0:00:08.4]} 49. Rd6 {[%clk 0:00:01.6]} 49... Kg6 {[%clk 0:00:08.3]} 50.
Rd3 {[%clk 0:00:02]} 50... g4 {[%clk 0:00:08.2]} 51. Kc3 {[%clk 0:00:01.8]}
51... g3 {[%clk 0:00:08.5]} 52. Re2 {[%clk 0:00:01.3]} 52... h2 {[%clk
0:00:08.5]} 53. Rxg3+ {[%clk 0:00:01.5]} 53... Rxg3+ {[%clk 0:00:08.4]} 0-1

[Event "*** Titled Tuesday Blitz"]
[Site "Chess.com"]
[Date "2021.03.30"]
[Round "10"]
[White "kikydu96"]
[Black "BJthechessgod"]
[Result "1-0"]
[WhiteElo "2478"]
[BlackElo "2322"]
[TimeControl "180+1"]
[EndTime "11:58:43 PDT"]
[Termination "kikydu96 won by checkmate"]

1. e4 {[%clk 0:03:00.9]} 1... c5 {[%clk 0:02:50.2]} 2. Nf3 {[%clk 0:03:01]} 2...
Nc6 {[%clk 0:02:50.2]} 3. Bb5 {[%clk 0:02:56.9]} 3... g6 {[%clk 0:02:49.7]} 4.
Bxc6 {[%clk 0:02:56.5]} 4... dxc6 {[%clk 0:02:50]} 5. d3 {[%clk 0:02:57.1]} 5...
Bg7 {[%clk 0:02:50.6]} 6. h3 {[%clk 0:02:55.8]} 6... e5 {[%clk 0:02:51.2]} 7.
Nbd2 {[%clk 0:02:54.1]} 7... Ne7 {[%clk 0:02:51.3]} 8. a3 {[%clk 0:02:54.2]}
8... O-O {[%clk 0:02:47.4]} 9. O-O {[%clk 0:02:53.9]} 9... Qc7 {[%clk
0:02:47.8]} 10. Rb1 {[%clk 0:02:53.6]} 10... Be6 {[%clk 0:02:47.4]} 11. b4
{[%clk 0:02:53.5]} 11... cxb4 {[%clk 0:02:46.8]} 12. axb4 {[%clk 0:02:54.4]}
12... h6 {[%clk 0:02:43.9]} 13. Nb3 {[%clk 0:02:47.1]} 13... b6 {[%clk
0:02:40.7]} 14. Be3 {[%clk 0:02:45.6]} 14... Rfd8 {[%clk 0:02:34]} 15. Qd2
{[%clk 0:02:44.5]} 15... Kh7 {[%clk 0:02:33.9]} 16. Rfd1 {[%clk 0:02:42.6]}
16... Nc8 {[%clk 0:02:30.9]} 17. c3 {[%clk 0:02:40.3]} 17... Nd6 {[%clk
0:02:30.4]} 18. Qc2 {[%clk 0:02:37.9]} 18... f5 {[%clk 0:02:28.9]} 19. exf5
{[%clk 0:01:57]} 19... Nxf5 {[%clk 0:02:29.8]} 20. Qe2 {[%clk 0:01:52.7]} 20...
Rd7 {[%clk 0:01:48.7]} 21. Nbd2 {[%clk 0:01:52]} 21... Rad8 {[%clk 0:01:45.3]}
22. Ne4 {[%clk 0:01:52]} 22... Bd5 {[%clk 0:01:35.7]} 23. Nfd2 {[%clk
0:01:38.6]} 23... Be6 {[%clk 0:01:32]} 24. Nf1 {[%clk 0:01:29.7]} 24... Ne7
{[%clk 0:01:03.4]} 25. Nfg3 {[%clk 0:01:18.7]} 25... Nd5 {[%clk 0:01:01.8]} 26.
Bd2 {[%clk 0:01:17.9]} 26... Nf4 {[%clk 0:00:59]} 27. Bxf4 {[%clk 0:01:16.4]}
27... exf4 {[%clk 0:00:59.9]} 28. Nf1 {[%clk 0:01:11.4]} 28... Bf5 {[%clk
0:00:54.8]} 29. Nh2 {[%clk 0:01:08.8]} 29... Bxe4 {[%clk 0:00:48.5]} 30. Qxe4
{[%clk 0:01:07.8]} 30... Bxc3 {[%clk 0:00:48.5]} 31. Ng4 {[%clk 0:01:03]} 31...
Bg7 {[%clk 0:00:46.2]} 32. Rbc1 {[%clk 0:01:00]} 32... Rd4 {[%clk 0:00:37.5]}
33. Rxc6 {[%clk 0:00:55.8]} 33... Rxe4 {[%clk 0:00:22.8]} 34. Rxc7 {[%clk
0:00:55]} 34... Rxb4 {[%clk 0:00:23.1]} 35. Re1 {[%clk 0:00:48.6]} 35... h5
{[%clk 0:00:15.9]} 36. Ree7 {[%clk 0:00:42.8]} 36... hxg4 {[%clk 0:00:16.1]} 37.
Rxg7+ {[%clk 0:00:42.9]} 37... Kh6 {[%clk 0:00:17]} 38. h4 {[%clk 0:00:43.6]}
38... Rh8 {[%clk 0:00:14.9]} 39. Rxa7 {[%clk 0:00:38.5]} 39... g3 {[%clk
0:00:14.2]} 40. fxg3 {[%clk 0:00:38.8]} 40... fxg3 {[%clk 0:00:15.1]} 41. Kf1
{[%clk 0:00:39.5]} 41... Rxh4 {[%clk 0:00:15.3]} 42. Ke2 {[%clk 0:00:37.5]}
42... Rf4 {[%clk 0:00:15.4]} 43. Ke3 {[%clk 0:00:35.6]} 43... Rf2 {[%clk
0:00:15.4]} 44. Rgd7 {[%clk 0:00:34.2]} 44... Rxg2 {[%clk 0:00:14.9]} 45. Ra4
{[%clk 0:00:34.8]} 45... Rf2 {[%clk 0:00:13.8]} 46. Rh4+ {[%clk 0:00:34.7]}
46... Kg5 {[%clk 0:00:13.4]} 47. Rxh8 {[%clk 0:00:35.3]} 47... Rf1 {[%clk
0:00:10.4]} 48. Rd5+ {[%clk 0:00:17.2]} 48... Kg4 {[%clk 0:00:08.8]} 49. Rd4+
{[%clk 0:00:17.6]} 49... Kg5 {[%clk 0:00:08.7]} 50. Rhh4 {[%clk 0:00:17.9]}
50... Rg1 {[%clk 0:00:05.2]} 51. Kf3 {[%clk 0:00:16.5]} 51... Kf5 {[%clk
0:00:03.7]} 52. Rhg4 {[%clk 0:00:15.6]} 52... Rf1+ {[%clk 0:00:01.9]} 53. Kxg3
{[%clk 0:00:15.3]} 53... Rg1+ {[%clk 0:00:02.8]} 54. Kf3 {[%clk 0:00:15.8]}
54... Rf1+ {[%clk 0:00:03.2]} 55. Ke2 {[%clk 0:00:16.2]} 55... Rh1 {[%clk
0:00:03.7]} 56. Rdf4+ {[%clk 0:00:15.2]} 56... Ke5 {[%clk 0:00:03.9]} 57. Re4+
{[%clk 0:00:16.1]} 57... Kf5 {[%clk 0:00:04.5]} 58. Rgf4+ {[%clk 0:00:16.7]}
58... Kg5 {[%clk 0:00:05.2]} 59. Rf8 {[%clk 0:00:16.5]} 59... Rh2+ {[%clk
0:00:05.2]} 60. Rf2 {[%clk 0:00:16.4]} 60... Rh3 {[%clk 0:00:06.1]} 61. Rg2+
{[%clk 0:00:16.2]} 61... Kf5 {[%clk 0:00:05.8]} 62. Rb4 {[%clk 0:00:16.9]} 62...
g5 {[%clk 0:00:05.4]} 63. Rb5+ {[%clk 0:00:16.9]} 63... Kf4 {[%clk 0:00:05.9]}
64. Rbxg5 {[%clk 0:00:17.1]} 64... Re3+ {[%clk 0:00:05.8]} 65. Kd2 {[%clk
0:00:16.9]} 65... Rf3 {[%clk 0:00:06.7]} 66. R2g4# {[%clk 0:00:16.8]} 1-0

[Event "*** Titled Tuesday Blitz"]
[Site "Chess.com"]
[Date "2021.03.30"]
[Round "10"]
[White "Shield12"]
[Black "Fandorine"]
[Result "1/2-1/2"]
[WhiteElo "2827"]
[BlackElo "2880"]
[TimeControl "180+1"]
[EndTime "11:58:47 PDT"]
[Termination "Game drawn - insufficient material"]

1. e4 {[%clk 0:03:00.9]} 1... c5 {[%clk 0:02:58.2]} 2. Nf3 {[%clk 0:03:01.1]}
2... e6 {[%clk 0:02:58.6]} 3. c3 {[%clk 0:03:01.3]} 3... Nf6 {[%clk 0:02:55.1]}
4. e5 {[%clk 0:03:01.7]} 4... Nd5 {[%clk 0:02:55.8]} 5. Bc4 {[%clk 0:03:02.6]}
5... Nb6 {[%clk 0:02:54.7]} 6. Bb3 {[%clk 0:03:02]} 6... Nc6 {[%clk 0:02:54]} 7.
O-O {[%clk 0:02:58.4]} 7... d6 {[%clk 0:02:54.1]} 8. exd6 {[%clk 0:02:57.9]}
8... Bxd6 {[%clk 0:02:54.6]} 9. d4 {[%clk 0:02:58.8]} 9... cxd4 {[%clk
0:02:53.5]} 10. Nxd4 {[%clk 0:02:59.7]} 10... O-O {[%clk 0:02:48.6]} 11. Be3
{[%clk 0:02:52.9]} 11... Qc7 {[%clk 0:02:38.2]} 12. h3 {[%clk 0:02:48.1]} 12...
Bf4 {[%clk 0:02:28.8]} 13. Nb5 {[%clk 0:02:09]} 13... Qe5 {[%clk 0:02:23.2]} 14.
Bxf4 {[%clk 0:02:08.8]} 14... Qxf4 {[%clk 0:02:23.3]} 15. Qd6 {[%clk 0:02:07.1]}
15... Qxd6 {[%clk 0:02:21]} 16. Nxd6 {[%clk 0:02:08]} 16... Rd8 {[%clk
0:02:21.1]} 17. Rd1 {[%clk 0:02:07.2]} 17... Kf8 {[%clk 0:02:15.7]} 18. Na3
{[%clk 0:02:05.7]} 18... Ke7 {[%clk 0:02:15.6]} 19. Ne4 {[%clk 0:01:51.8]} 19...
Bd7 {[%clk 0:02:10.9]} 20. Nc5 {[%clk 0:01:50.8]} 20... Rab8 {[%clk 0:02:10.5]}
21. Nc4 {[%clk 0:01:41.9]} 21... Nxc4 {[%clk 0:02:00.8]} 22. Bxc4 {[%clk
0:01:42.8]} 22... Be8 {[%clk 0:01:56.4]} 23. Be2 {[%clk 0:01:41.6]} 23... b6
{[%clk 0:01:52.2]} 24. Ne4 {[%clk 0:01:32]} 24... f5 {[%clk 0:01:49.1]} 25. Nd2
{[%clk 0:01:28.4]} 25... e5 {[%clk 0:01:46.2]} 26. f3 {[%clk 0:01:28.5]} 26...
Bf7 {[%clk 0:01:43.8]} 27. Bb5 {[%clk 0:01:27.9]} 27... Rbc8 {[%clk 0:01:38.1]}
28. Kf2 {[%clk 0:01:27.9]} 28... Rd5 {[%clk 0:01:29.7]} 29. Bxc6 {[%clk
0:01:10]} 29... Rxc6 {[%clk 0:01:29]} 30. Nf1 {[%clk 0:01:10.4]} 30... f4 {[%clk
0:01:12.3]} 31. Rxd5 {[%clk 0:01:09.8]} 31... Bxd5 {[%clk 0:01:13.2]} 32. Nd2
{[%clk 0:01:10.7]} 32... Ke6 {[%clk 0:01:09.7]} 33. Rc1 {[%clk 0:01:08]} 33...
b5 {[%clk 0:01:03.2]} 34. a3 {[%clk 0:01:06.8]} 34... a5 {[%clk 0:00:50.2]} 35.
Re1 {[%clk 0:01:06.8]} 35... Kf5 {[%clk 0:00:46.4]} 36. Ne4 {[%clk 0:00:58.5]}
36... h6 {[%clk 0:00:37.7]} 37. g4+ {[%clk 0:00:55.4]} 37... Ke6 {[%clk
0:00:32.2]} 38. h4 {[%clk 0:00:55.7]} 38... b4 {[%clk 0:00:27]} 39. axb4 {[%clk
0:00:33.2]} 39... axb4 {[%clk 0:00:27.9]} 40. cxb4 {[%clk 0:00:27.4]} 40... Rc2+
{[%clk 0:00:26.1]} 41. Re2 {[%clk 0:00:20.3]} 41... Bxe4 {[%clk 0:00:23]} 42.
fxe4 {[%clk 0:00:20]} 42... Rc4 {[%clk 0:00:13.6]} 43. b5 {[%clk 0:00:19.1]}
43... Rb4 {[%clk 0:00:13.6]} 44. Rc2 {[%clk 0:00:17.2]} 44... Rxb5 {[%clk
0:00:10.4]} 45. Rc6+ {[%clk 0:00:14.9]} 45... Kf7 {[%clk 0:00:10.5]} 46. Rc7+
{[%clk 0:00:13.1]} 46... Kg8 {[%clk 0:00:10.8]} 47. Rc8+ {[%clk 0:00:11.8]}
47... Kh7 {[%clk 0:00:11]} 48. Re8 {[%clk 0:00:11]} 48... Rxb2+ {[%clk
0:00:10.6]} 49. Kf3 {[%clk 0:00:11.9]} 49... Rb3+ {[%clk 0:00:10.4]} 50. Kf2
{[%clk 0:00:12.2]} 50... Rh3 {[%clk 0:00:07.4]} 51. h5 {[%clk 0:00:12]} 51...
Rg3 {[%clk 0:00:04.8]} 52. Rxe5 {[%clk 0:00:12.3]} 52... Rxg4 {[%clk 0:00:05.3]}
53. Kf3 {[%clk 0:00:13.2]} 53... Rh4 {[%clk 0:00:05.5]} 54. Rf5 {[%clk
0:00:12.6]} 54... g5 {[%clk 0:00:05.8]} 55. hxg6+ {[%clk 0:00:11.3]} 55... Kxg6
{[%clk 0:00:06.3]} 56. Rxf4 {[%clk 0:00:11.7]} 56... Rxf4+ {[%clk 0:00:07.2]}
57. Kxf4 {[%clk 0:00:12.6]} 57... Kf6 {[%clk 0:00:08.1]} 58. Kg4 {[%clk
0:00:12.8]} 58... Ke6 {[%clk 0:00:09]} 59. Kh5 {[%clk 0:00:13]} 59... Ke5 {[%clk
0:00:09.9]} 60. Kxh6 {[%clk 0:00:13.7]} 60... Kxe4 {[%clk 0:00:10.8]} 1/2-1/2

[Event "*** Titled Tuesday Blitz"]
[Site "Chess.com"]
[Date "2021.03.30"]
[Round "10"]
[White "tptagain"]
[Black "swisspower96"]
[Result "1-0"]
[WhiteElo "2827"]
[BlackElo "2610"]
[TimeControl "180+1"]
[EndTime "11:58:47 PDT"]
[Termination "tptagain won by resignation"]

1. Nf3 {[%clk 0:03:00.9]} 1... d5 {[%clk 0:02:58]} 2. b3 {[%clk 0:03:00]} 2...
Bf5 {[%clk 0:02:56.8]} 3. Bb2 {[%clk 0:02:59.5]} 3... e6 {[%clk 0:02:57.4]} 4.
e3 {[%clk 0:02:56]} 4... Nf6 {[%clk 0:02:57.4]} 5. h3 {[%clk 0:02:55.8]} 5... h6
{[%clk 0:02:50.4]} 6. Bd3 {[%clk 0:02:55.6]} 6... Be4 {[%clk 0:02:39.7]} 7. O-O
{[%clk 0:02:50.9]} 7... Nbd7 {[%clk 0:02:39.4]} 8. Nc3 {[%clk 0:02:41.9]} 8...
Bd6 {[%clk 0:02:33]} 9. Bxe4 {[%clk 0:02:20.9]} 9... dxe4 {[%clk 0:02:31.3]} 10.
Nd4 {[%clk 0:02:18.9]} 10... a6 {[%clk 0:02:28.3]} 11. d3 {[%clk 0:02:18.6]}
11... exd3 {[%clk 0:02:17]} 12. cxd3 {[%clk 0:02:16.9]} 12... O-O {[%clk
0:02:11.3]} 13. Qe2 {[%clk 0:02:12.5]} 13... Re8 {[%clk 0:02:10.6]} 14. Rfd1
{[%clk 0:02:12.1]} 14... e5 {[%clk 0:02:06.7]} 15. Nf5 {[%clk 0:02:11.1]} 15...
Bf8 {[%clk 0:02:07]} 16. Rac1 {[%clk 0:02:02]} 16... c5 {[%clk 0:02:06.9]} 17.
Ne4 {[%clk 0:01:59.9]} 17... Re6 {[%clk 0:01:56.4]} 18. Qf3 {[%clk 0:01:47.8]}
18... g6 {[%clk 0:01:45.6]} 19. Nfg3 {[%clk 0:01:34.2]} 19... Nxe4 {[%clk
0:00:39.1]} 20. Nxe4 {[%clk 0:01:20]} 20... Qb6 {[%clk 0:00:22.5]} 21. d4 {[%clk
0:01:16.7]} 21... cxd4 {[%clk 0:00:17.9]} 22. exd4 {[%clk 0:01:16.6]} 22... f5
{[%clk 0:00:18.5]} 23. Nc5 {[%clk 0:01:08.3]} 23... Nxc5 {[%clk 0:00:09]} 24.
dxc5 {[%clk 0:01:09.2]} 24... Bxc5 {[%clk 0:00:09.5]} 25. Rd7 {[%clk 0:01:06.1]}
25... Bf8 {[%clk 0:00:08.5]} 26. Rxb7 {[%clk 0:01:00.5]} 26... Qd8 {[%clk
0:00:08.8]} 27. Rcc7 {[%clk 0:00:54.8]} 27... Rc8 {[%clk 0:00:09.1]} 28. Rd7
{[%clk 0:00:50.2]} 28... Qe8 {[%clk 0:00:04.5]} 29. Qd5 {[%clk 0:00:42.1]} 29...
Rc5 {[%clk 0:00:04.5]} 30. Qd2 {[%clk 0:00:31.5]} 30... Rcc6 {[%clk 0:00:02.9]}
31. Bc3 {[%clk 0:00:24.1]} 31... Red6 {[%clk 0:00:02.8]} 32. Rxd6 {[%clk
0:00:18.8]} 32... Rxd6 {[%clk 0:00:03.7]} 33. Qe2 {[%clk 0:00:18.6]} 33... Rd7
{[%clk 0:00:03.9]} 34. Rxd7 {[%clk 0:00:16.8]} 34... Qxd7 {[%clk 0:00:04.8]} 35.
Qxe5 {[%clk 0:00:16.2]} 35... Qd1+ {[%clk 0:00:01.7]} 36. Qe1 {[%clk 0:00:16.8]}
36... Qc2 {[%clk 0:00:01.9]} 37. Qd2 {[%clk 0:00:15.7]} 37... Qxd2 {[%clk
0:00:01.1]} 38. Bxd2 {[%clk 0:00:16.6]} 38... Kf7 {[%clk 0:00:01.8]} 39. Kf1
{[%clk 0:00:16.2]} 39... h5 {[%clk 0:00:02.3]} 40. Ke2 {[%clk 0:00:16.5]} 40...
Ke6 {[%clk 0:00:03.1]} 41. Kd3 {[%clk 0:00:17]} 41... Kd5 {[%clk 0:00:04]} 42.
f3 {[%clk 0:00:17.1]} 42... Bd6 {[%clk 0:00:04.7]} 43. b4 {[%clk 0:00:15.8]}
43... Be7 {[%clk 0:00:04.9]} 44. a4 {[%clk 0:00:15.4]} 44... Bd6 {[%clk
0:00:05.5]} 45. Be1 {[%clk 0:00:14.4]} 45... Be7 {[%clk 0:00:05.9]} 46. Kc3
{[%clk 0:00:11.5]} 46... Bf6+ {[%clk 0:00:05.6]} 47. Kb3 {[%clk 0:00:11.9]}
47... Be7 {[%clk 0:00:04.9]} 48. Bf2 {[%clk 0:00:11]} 48... Kc6 {[%clk
0:00:02.4]} 49. Kc4 {[%clk 0:00:11.1]} 49... Kd7 {[%clk 0:00:02.2]} 50. b5
{[%clk 0:00:10.7]} 50... axb5+ {[%clk 0:00:02.7]} 51. axb5 {[%clk 0:00:11.6]}
51... Ke6 {[%clk 0:00:02.9]} 52. b6 {[%clk 0:00:11.8]} 52... Bd6 {[%clk
0:00:03.5]} 53. b7 {[%clk 0:00:11.7]} 53... Bb8 {[%clk 0:00:03.9]} 54. Kc5
{[%clk 0:00:10.8]} 54... Kd7 {[%clk 0:00:03.4]} 55. Kd5 {[%clk 0:00:10.2]} 55...
g5 {[%clk 0:00:02.7]} 56. Bb6 {[%clk 0:00:09]} 56... h4 {[%clk 0:00:02.8]} 57.
Bd4 {[%clk 0:00:08.6]} 57... Ke7 {[%clk 0:00:02.4]} 58. Be5 {[%clk 0:00:08.8]}
1-0

[Event "*** Titled Tuesday Blitz"]
[Site "Chess.com"]
[Date "2021.03.30"]
[Round "10"]
[White "FGHSMN"]
[Black "Aslanov_Umid"]
[Result "1-0"]
[WhiteElo "2644"]
[BlackElo "2425"]
[TimeControl "180+1"]
[EndTime "11:58:47 PDT"]
[Termination "FGHSMN won by checkmate"]

1. e4 {[%clk 0:03:00.9]} 1... c5 {[%clk 0:02:59.9]} 2. Nf3 {[%clk 0:03:00.3]}
2... d6 {[%clk 0:03:00.5]} 3. d4 {[%clk 0:02:59.8]} 3... cxd4 {[%clk 0:03:01.4]}
4. Nxd4 {[%clk 0:03:00.7]} 4... Nf6 {[%clk 0:03:02]} 5. Nc3 {[%clk 0:02:56]}
5... a6 {[%clk 0:03:02.3]} 6. h3 {[%clk 0:02:55.8]} 6... e6 {[%clk 0:03:02.2]}
7. g4 {[%clk 0:02:54.3]} 7... b5 {[%clk 0:03:00.1]} 8. Bg2 {[%clk 0:02:49]} 8...
Bb7 {[%clk 0:03:00.2]} 9. O-O {[%clk 0:02:41.1]} 9... Nc6 {[%clk 0:02:57.8]} 10.
Be3 {[%clk 0:02:04.3]} 10... Qc7 {[%clk 0:02:51.6]} 11. g5 {[%clk 0:01:50.8]}
11... Nd7 {[%clk 0:02:50.4]} 12. Qe2 {[%clk 0:01:45.3]} 12... Be7 {[%clk
0:02:48.3]} 13. Rae1 {[%clk 0:01:41.5]} 13... O-O {[%clk 0:02:46.6]} 14. f4
{[%clk 0:01:39.5]} 14... Nxd4 {[%clk 0:02:38.5]} 15. Bxd4 {[%clk 0:01:40.4]}
15... e5 {[%clk 0:02:39.4]} 16. Be3 {[%clk 0:01:39.6]} 16... exf4 {[%clk
0:02:35.3]} 17. Bxf4 {[%clk 0:01:40.5]} 17... Ne5 {[%clk 0:02:33.1]} 18. Kh1
{[%clk 0:01:37.4]} 18... b4 {[%clk 0:02:29.7]} 19. Nd5 {[%clk 0:01:36.3]} 19...
Bxd5 {[%clk 0:02:27.9]} 20. exd5 {[%clk 0:01:37.2]} 20... Ng6 {[%clk 0:02:12.8]}
21. Be3 {[%clk 0:01:27.1]} 21... Rac8 {[%clk 0:02:04.3]} 22. Qxa6 {[%clk
0:01:12.8]} 22... Ne5 {[%clk 0:01:40.5]} 23. Bf4 {[%clk 0:01:06.7]} 23... Ng6
{[%clk 0:01:09.1]} 24. Be3 {[%clk 0:00:58.8]} 24... Ne5 {[%clk 0:01:07.3]} 25.
Bf4 {[%clk 0:00:53.4]} 25... Ng6 {[%clk 0:01:02.7]} 26. Bd2 {[%clk 0:00:51.8]}
26... Qxc2 {[%clk 0:00:32.8]} 27. Rc1 {[%clk 0:00:50.7]} 27... Qxd2 {[%clk
0:00:33.3]} 28. Rxc8 {[%clk 0:00:47.1]} 28... Nh4 {[%clk 0:00:33.5]} 29. Rxf8+
{[%clk 0:00:46.3]} 29... Bxf8 {[%clk 0:00:33.9]} 30. Be4 {[%clk 0:00:37.8]}
30... Qxg5 {[%clk 0:00:23.9]} 31. Qe2 {[%clk 0:00:31.4]} 31... Ng6 {[%clk
0:00:20]} 32. Bxg6 {[%clk 0:00:25.7]} 32... hxg6 {[%clk 0:00:20.9]} 33. Qf3
{[%clk 0:00:24.5]} 33... f6 {[%clk 0:00:15.5]} 34. a4 {[%clk 0:00:24.3]} 34...
bxa3 {[%clk 0:00:12.5]} 35. bxa3 {[%clk 0:00:25.2]} 35... Qh4 {[%clk 0:00:11.9]}
36. Kg2 {[%clk 0:00:21.7]} 36... Qa4 {[%clk 0:00:11]} 37. Re1 {[%clk 0:00:21.1]}
37... Qc2+ {[%clk 0:00:10.9]} 38. Re2 {[%clk 0:00:21]} 38... Qc1 {[%clk
0:00:09.8]} 39. a4 {[%clk 0:00:19.6]} 39... Qg5+ {[%clk 0:00:09.5]} 40. Kh2
{[%clk 0:00:19.7]} 40... f5 {[%clk 0:00:04.5]} 41. a5 {[%clk 0:00:19.4]} 41...
Be7 {[%clk 0:00:05]} 42. a6 {[%clk 0:00:18.7]} 42... Bf6 {[%clk 0:00:05.5]} 43.
a7 {[%clk 0:00:16.9]} 43... Be5+ {[%clk 0:00:03.1]} 44. Rxe5 {[%clk 0:00:16.8]}
44... dxe5 {[%clk 0:00:03]} 45. a8=Q+ {[%clk 0:00:16.5]} 45... Kh7 {[%clk
0:00:03.9]} 46. Qa2 {[%clk 0:00:13.3]} 46... e4 {[%clk 0:00:04.1]} 47. Qg3
{[%clk 0:00:13.5]} 47... Qe7 {[%clk 0:00:02.4]} 48. Qaf2 {[%clk 0:00:13.5]}
48... g5 {[%clk 0:00:02.1]} 49. Qxf5+ {[%clk 0:00:12.5]} 49... g6 {[%clk
0:00:02.5]} 50. Qfxg5 {[%clk 0:00:11.5]} 50... Qxg5 {[%clk 0:00:02]} 51. Qxg5
{[%clk 0:00:11.4]} 51... e3 {[%clk 0:00:02.9]} 52. Qxe3 {[%clk 0:00:12.3]} 52...
g5 {[%clk 0:00:02.9]} 53. d6 {[%clk 0:00:13.2]} 53... Kh8 {[%clk 0:00:03.6]} 54.
d7 {[%clk 0:00:14.1]} 54... Kh7 {[%clk 0:00:03.9]} 55. d8=Q {[%clk 0:00:15]}
55... g4 {[%clk 0:00:04.8]} 56. Qde7+ {[%clk 0:00:14.9]} 56... Kg6 {[%clk
0:00:05.7]} 57. Q3g5# {[%clk 0:00:14.2]} 1-0